bitfinex-derivatives/quotes_ETHF0:USTF0_20250704
["timestamp","ask_amount","ask_price","bid_price","bid_amount"]
[1751670585479,2.89683,2518.5,2518.4,0.79395]
[1751670585480,0.7125,2518.5,2518.4,0.79395]
[1751670585780,36.7885,2518.5,2518.4,0.79395]
[1751670585980,0.6865,2518.7,2518.6,0.79389]
[1751670586177,38.51015088,2518.7,2518.6,0.79389]
[1751670586577,38.51715088,2518.7,2518.6,0.79389]
[1751670586777,37.4277,2518.7,2518.6,0.79389]
[1751670587880,1.3447,2518.7,2518.6,0.79389]
[1751670588083,68.369,2518.8,2518.7,0.79386]
[1751670588384,104.448,2518.8,2518.7,0.79386]
[1751670596591,105.8462,2518.8,2518.7,0.79386]
[1751670598693,106.64003,2518.8,2518.7,0.79386]
[1751670598896,0.79387,2518.7,2518.6,0.79387]
[1751670599196,0.7939,2518.6,2518.5,0.7939]
[1751670599487,36.8479,2518.6,2518.5,0.7939]
[1751670599693,38.1415,2518.6,2518.5,0.7939]
[1751670600293,0.79394,2518.5,2518.0,1.98515]
[1751670600590,36.85595,2518.4,2518.3,0.79399]
[1751670601696,36.062,2518.4,2518.3,0.79399]
[1751670602097,36.85595,2518.4,2518.3,0.79399]
[1751670602299,38.26095,2518.4,2518.3,0.79399]
[1751670607002,0.794,2518.3,2518.2,0.794]
[1751670607301,2.9003,2518.3,2518.2,0.794]
[1751670608702,0.79404,2518.2,2518.1,0.79402]
[1751670609002,38.90354,2518.2,2518.1,0.79402]
[1751670609204,50.07554,2518.2,2518.1,0.79402]
[1751670617908,0.79407,2518.1,2518.0,0.79405]
[1751670618106,0.79416,2517.8,2517.7,0.79414]
[1751670618300,36.82816,2517.8,2517.7,0.79414]
[1751670619305,0.79419,2517.7,2517.6,0.79418]
[1751670619513,2.20909,2517.7,2517.6,0.79418]
[1751670620114,1.4149,2517.7,2517.6,0.79418]
[1751670620313,1.4149,2517.7,2517.5,0.79422]
[1751670620515,36.7094,2517.6,2517.5,0.79422]
[1751670620913,50.09151,2517.6,2517.5,0.79422]
[1751670621413,0.79425,2517.5,2517.4,0.79425]
[1751670621614,2.11245,2517.5,2517.4,0.79425]
[1751670622014,1.3182,2517.5,2517.4,0.79425]
[1751670625019,0.6664,2517.6,2517.5,0.79424]
[1751670625219,0.79416,2517.8,2517.7,0.79418]
[1751670625518,48.01216,2517.8,2517.7,0.79418]
[1751670626116,49.10263107,2517.8,2517.7,0.79418]
[1751670626421,48.01216,2517.8,2517.7,0.79418]
[1751670626721,0.79419,2517.7,2517.6,0.79419]
[1751670627018,2.78569,2517.7,2517.6,0.79419]
[1751670627416,0.79423,2517.6,2517.5,0.79422]
[1751670627621,38.12933,2517.6,2517.5,0.79422]
[1751670629227,38.83183,2517.6,2517.5,0.79422]
[1751670630327,38.0376,2517.6,2517.5,0.79422]
[1751670630522,0.79429,2517.4,2517.1,0.6698]
[1751670630727,36.054,2517.3,2517.0,0.6793]
[1751670631027,36.84734,2517.2,2517.1,0.79436]
[1751670631226,50.09004,2517.2,2517.0,1.47368]
[1751670631728,0.79436,2517.1,2517.0,1.47368]
[1751670631925,49.2957,2517.2,2516.8,0.79444]
[1751670632129,0.79443,2516.9,2516.8,0.79444]
[1751670632429,0.79446,2516.8,2516.7,1.47378]
[1751670632618,1.47676,2516.8,2516.7,1.47378]
[1751670633022,0.6823,2516.8,2516.7,1.47378]
[1751670636228,36.063,2516.9,2516.8,0.79446]
[1751670639032,36.85744,2516.9,2516.7,1.47376]
[1751670639325,0.79446,2516.8,2516.7,0.6793]
[1751670639525,0.79452,2516.6,2516.5,0.79453]
[1751670639731,47.228,2516.6,2515.9,3.29717]
[1751670639926,2.0669,2516.5,2516.0,1.98679]
[1751670640126,2.0669,2516.5,2515.9,3.29717]
[1751670640127,0.7946,2516.4,2516.3,0.7946]
[1751670640523,0.79464,2516.3,2516.2,0.79463]
[1751670640724,36.86363,2516.3,2516.2,0.79465]
[1751670641432,36.069,2516.3,2516.2,0.79465]
[1751670642435,36.86362,2516.3,2516.2,0.79465]
[1751670642634,36.069,2516.3,2516.2,0.79465]
[1751670642831,0.6605,2516.5,2516.4,0.79459]
[1751670643036,47.9045,2516.5,2516.4,0.79459]
[1751670643534,48.69905,2516.5,2516.4,0.79459]
[1751670643726,47.9045,2516.5,2516.4,0.79459]
[1751670645537,1.4064,2516.7,2516.6,0.79452]
[1751670645739,0.79454,2516.6,2516.5,0.79454]
[1751670646337,0.7946,2516.4,2516.3,0.7946]
[1751670646537,36.8686,2516.4,2516.3,0.7946]
[1751670647438,36.8686,2516.4,2516.2,0.689]
[1751670647439,0.79462,2516.3,2516.2,1.48364]
[1751670648736,8.97317,2516.3,2515.0,3.93754482]
[1751670648946,0.79483,2515.7,2515.3,0.6474]
[1751670649145,2.0454,2516.2,2515.4,1.98726]
[1751670649347,0.79472,2516.0,2515.7,0.79479]
[1751670649543,0.79481,2515.7,2515.6,0.79482]
[1751670649739,36.92683,2515.7,2515.6,0.79484]
[1751670650747,36.92683,2515.7,2515.5,2.13275]
[1751670650943,0.79484,2515.6,2515.5,2.13275]
[1751670651143,0.79484,2515.6,2515.4,0.79488]
[1751670651341,0.79491,2515.4,2515.2,1.3379]
[1751670651543,36.132,2515.7,2515.2,1.3379]
[1751670651747,0.79492,2515.4,2515.2,2.13285]
[1751670651945,0.79493,2515.3,2515.2,2.13285]
[1751670653546,0.79493,2515.3,2515.2,1.3379]
[1751670653748,0.79496,2515.2,2515.1,0.79497]
[1751670654543,36.151,2515.4,2514.8,1.687812]
[1751670654544,0.795,2515.1,2514.8,1.687812]
[1751670654950,36.149,2515.0,2514.9,0.79505]
[1751670658250,36.94403,2515.0,2514.9,0.79505]
[1751670658450,36.149,2515.0,2514.9,0.79505]
[1751670659248,36.94403,2515.0,2514.8,0.79507]
[1751670659549,0.659,2515.3,2513.9,3.97682]
[1751670659746,3.3921,2515.4,2513.4,9.49023276]
[1751670659747,0.79502,2515.1,2514.8,0.79506]
[1751670659948,0.79502,2515.1,2514.9,0.79506]
[1751670660146,2.11802,2515.1,2514.9,0.79506]
[1751670660541,0.6775,2515.0,2514.9,0.79506]
[1751670660842,48.0995,2515.0,2514.9,0.79506]
[1751670661453,48.0975,2515.0,2514.9,0.79506]
[1751670661648,47.42,2515.0,2514.7,0.6918]
[1751670661848,47.42,2515.0,2514.9,0.79506]
[1751670662146,1.48092,2515.4,2515.2,0.79495]
[1751670662353,47.426,2515.3,2515.2,0.79495]
[1751670662650,47.426,2515.3,2514.8,3.30681]
[1751670662651,47.425,2515.3,2514.8,3.30681]
[1751670662849,2.82802,2515.4,2514.9,1.98765]
[1751670662850,47.423,2515.2,2514.9,1.98765]
[1751670663052,36.22,2515.1,2514.9,1.98765]
[1751670663252,36.22,2515.1,2515.0,0.79503]
[1751670664449,36.22,2515.1,2514.9,0.79504]
[1751670664652,2.77384,2515.0,2514.8,0.79507]
[1751670664853,1.3081,2514.9,2514.8,0.79507]
[1751670665048,1.46574,2515.0,2514.9,0.79506]
[1751670665049,11.8737,2515.0,2514.9,0.79506]
[1751670665256,48.0997,2515.0,2514.9,0.79506]
[1751670665749,1.3081,2515.4,2515.2,0.79493]
[1751670665954,48.1007,2515.3,2515.2,0.79493]
[1751670666355,49.4088,2515.3,2515.2,0.79493]
[1751670668055,48.1017,2515.3,2515.2,0.79493]
[1751670668360,0.6707,2515.3,2515.2,0.79493]
[1751670668550,0.6911,2515.5,2515.4,0.7949]
[1751670668551,11.203,2515.5,2515.4,0.7949]
[1751670668754,47.445,2515.5,2515.4,0.7949]
[1751670669158,0.7028,2515.6,2515.5,0.79487]
[1751670669460,47.449,2515.6,2515.5,0.79487]
[1751670669666,0.7028,2515.9,2515.8,0.79477]
[1751670669854,48.1558,2515.9,2515.8,0.79477]
[1751670670161,0.7028,2515.9,2515.8,0.79477]
[1751670670362,36.9628,2515.9,2515.8,0.79477]
[1751670671661,36.9628,2515.9,2514.0,3.97662]
[1751670671856,1.4099,2515.8,2515.7,0.79478]
[1751670672566,11.9058,2515.9,2515.8,0.79477]
[1751670672866,48.1668,2515.9,2515.8,0.79477]
[1751670673063,49.4815,2515.9,2515.8,0.79477]
[1751670673265,50.27624,2515.9,2515.7,0.79478]
[1751670673458,50.27624,2515.9,2515.8,0.79477]
[1751670673663,49.4815,2515.9,2515.8,0.79477]
[1751670675764,50.27624,2515.9,2515.4,0.7131]
[1751670676269,1.4287,2515.8,2515.4,0.7131]
[1751670676469,36.247,2515.7,2515.4,0.7131]
[1751670676968,36.247,2515.7,2515.6,0.79484]
[1751670679966,1.4287,2515.8,2515.7,0.79481]
[1751670680172,11.9058,2515.9,2515.8,0.79477]
[1751670680373,48.1358,2515.9,2515.8,0.79477]
[1751670680574,49.4835,2515.9,2515.8,0.79477]
[1751670681967,49.4835,2515.9,2515.4,0.7131]
[1751670682172,2.20999,2515.8,2515.3,1.98731]
[1751670682375,37.6432,2515.7,2515.3,2.68361]
[1751670682674,36.228,2515.7,2515.6,0.79484]
[1751670683476,36.218,2515.7,2515.6,0.79484]
[1751670696786,2.91276,2515.9,2515.7,0.79478]
[1751670696986,37.5595,2515.8,2515.7,0.79478]
[1751670698285,38.35427,2515.8,2515.7,0.79478]
[1751670698787,37.5595,2515.8,2515.7,0.79478]
[1751670699291,38.662932,2515.8,2515.7,0.79478]
[1751670703493,2.492932,2515.8,2515.7,0.79478]
[1751670703689,11.9168,2515.9,2515.8,0.79477]
[1751670703890,49.16829206,2515.9,2515.8,0.79477]
[1751670704197,48.0648,2515.9,2515.8,0.79477]
[1751670704493,0.7028,2515.9,2515.8,0.79477]
[1751670704693,36.8528,2515.9,2515.8,0.79477]
[1751670707199,36.142,2515.9,2515.8,0.79477]
[1751670707392,36.142,2515.9,2515.8,1.50927]
[1751670707896,2.20057,2516.2,2516.0,0.79471]
[1751670708092,37.27492904,2516.1,2516.0,0.79471]
[1751670708292,37.5779,2516.1,2516.0,0.79471]
[1751670709293,0.6639,2516.6,2516.4,0.79456]
[1751670709494,11.213,2516.4,2516.3,0.79462]
[1751670709695,12.31517994,2516.4,2516.3,0.79462]
[1751670709896,13.74077994,2516.4,2516.3,0.79462]
[1751670710096,13.74076883,2516.4,2516.3,0.79462]
[1751670710993,49.91676883,2516.4,2516.3,0.79462]
[1751670711991,48.8066,2516.4,2516.3,0.79462]
[1751670712197,48.8066,2516.4,2516.1,0.6938]
[1751670712198,11.213,2516.5,2516.4,0.79458]
[1751670712398,47.38,2516.5,2516.4,0.79458]
[1751670713700,0.6639,2516.6,2516.5,0.79455]
[1751670713900,40.06003579,2516.6,2516.4,0.79457]
[1751670714097,0.79457,2516.5,2516.4,0.79458]
[1751670714339,2.12947,2516.5,2516.4,0.79458]
[1751670715498,1.3349,2516.5,2516.4,0.79458]
[1751670717100,37.4909,2516.5,2516.4,0.79458]
[1751670721005,38.28545,2516.5,2516.4,0.79458]
[1751670721200,37.4909,2516.5,2516.1,0.6938]
[1751670721401,0.79463,2516.3,2516.2,0.79463]
[1751670721606,36.93463,2516.3,2516.2,0.79463]
[1751670722806,36.14,2516.3,2516.2,0.79463]
[1751670723106,36.93462,2516.3,2516.2,0.79463]
[1751670723307,38.29402,2516.3,2516.2,0.79463]
[1751670724204,0.79467,2516.2,2516.1,0.79466]
[1751670724397,2.15407,2516.2,2516.1,0.79466]
[1751670726003,2.86567,2516.2,2516.1,0.79466]
[1751670728608,2.071,2516.2,2516.1,0.79466]
[1751670730202,0.7116,2516.2,2516.1,0.79466]
[1751670730408,0.6639,2516.6,2515.9,0.6762]
[1751670730409,13.197,2516.6,2516.5,0.79455]
[1751670730608,51.1043852,2516.6,2516.5,0.79455]
[1751670731210,50.0056,2516.6,2516.5,0.79455]
[1751670731807,51.10440474,2516.6,2516.5,0.79455]
[1751670732008,3.76340474,2516.6,2516.5,0.79455]
[1751670732210,50.0016,2516.6,2516.5,0.79455]
[1751670732407,48.0026,2516.6,2516.5,0.79455]
[1751670736214,36.7976,2516.6,2516.5,0.79455]
[1751670738116,37.89685901,2516.6,2516.5,0.79455]
[1751670738321,39.18595901,2516.6,2516.5,0.79455]
[1751670740117,39.87515901,2516.6,2516.5,0.79455]
[1751670740320,40.66967901,2516.6,2516.5,0.79455]
[1751670740821,39.87515901,2516.6,2516.5,0.79455]
[1751670741120,3.74315901,2516.6,2516.5,0.79455]
[1751670741618,51.84567901,2516.6,2516.5,0.79455]
[1751670745426,51.05115901,2516.6,2516.5,0.79455]
[1751670745723,51.84567901,2516.6,2516.5,0.79455]
[1751670747027,51.05115901,2516.6,2516.5,0.79455]
[1751670747227,1.09925901,2516.6,2516.5,0.79455]
[1751670747427,11.197,2517.2,2517.1,0.79436]
[1751670747628,14.05291,2517.3,2517.2,0.79433]
[1751670747821,51.25996889,2517.3,2517.2,0.79433]
[1751670748125,50.46665889,2517.3,2517.2,0.79433]
[1751670748325,50.46465889,2517.3,2517.2,0.79433]
[1751670748619,3.82955889,2517.3,2517.2,0.79433]
[1751670748819,15.02655889,2517.3,2517.2,0.79433]
[1751670749016,50.0355,2517.3,2517.2,0.79433]
[1751670757832,13.9135,2517.3,2517.2,0.79433]
[1751670758029,11.8519,2517.3,2517.2,0.79433]
[1751670758228,47.9309,2517.3,2517.2,0.79433]
[1751670758832,58.02325,2517.5,2517.4,0.79427]
[1751670759033,105.28425,2517.5,2517.4,0.79427]
[1751670760228,58.02325,2517.5,2517.3,0.79428]
[1751670760430,50.07577,2517.4,2517.3,0.79428]
[1751670760630,57.229,2517.5,2517.4,0.79427]
[1751670760828,93.307,2517.5,2517.4,0.79427]
[1751670761231,93.31,2517.5,2517.4,0.79427]
[1751670761535,57.229,2517.5,2517.4,0.79427]
[1751670761736,93.31,2517.5,2517.4,0.79427]
[1751670763636,36.081,2517.5,2517.4,0.79427]
[1751670764534,36.081,2517.5,2517.0,1.986]
[1751670764731,2.7695,2517.4,2517.3,0.79429]
[1751670765330,36.7908,2517.4,2517.3,0.79429]
[1751670766431,1.4113,2517.7,2517.6,0.79421]
[1751670766432,12.5913,2517.7,2517.6,0.79421]
[1751670766632,49.3334,2517.7,2517.6,0.79421]
[1751670768134,13.2444,2517.7,2517.6,0.79421]
[1751670768331,49.3334,2517.7,2517.6,0.79421]
[1751670769536,49.3294,2517.7,2517.6,0.79421]
[1751670772537,13.2444,2517.7,2517.6,0.79421]
[1751670772733,49.3234,2517.7,2517.6,0.79421]
[1751670772932,2.0644,2517.7,2517.6,0.79421]
[1751670773137,38.1404,2517.7,2517.6,0.79421]
[1751670776738,36.7291,2517.7,2517.6,0.79421]
[1751670777435,0.6531,2517.7,2517.6,0.79421]
[1751670777641,36.7251,2517.7,2517.6,0.79421]
[1751670778339,38.0478,2517.7,2517.6,0.79421]
[1751670780339,0.6534,2517.8,2517.7,0.79417]
[1751670780539,11.179,2517.9,2517.8,0.79414]
[1751670780745,47.25,2517.9,2517.8,0.79414]
[1751670782347,11.179,2517.9,2517.8,0.79414]
[1751670782548,47.25,2517.9,2517.8,0.79414]
[1751670783147,11.175,2518.5,2517.8,5.0]
[1751670783345,2.38140357,2518.8,2517.9,1.3314]
[1751670783346,0.6782,2518.6,2517.9,1.3314]
[1751670783647,1.3422,2518.4,2517.7,1.98542]
[1751670783848,37.82387661,2518.3,2518.2,0.79402]
[1751670784348,39.16607661,2518.3,2518.2,0.79402]
[1751670785245,51.13506661,2518.3,2518.2,0.79402]
[1751670785445,50.34107661,2518.3,2518.2,0.79402]
[1751670786148,51.13506661,2518.3,2518.2,0.79402]
[1751670786350,0.79403,2518.2,2518.0,0.79405]
[1751670786550,37.96272661,2518.1,2517.9,0.79409]
[1751670786749,2.21608,2518.0,2517.8,0.79412]
[1751670786947,38.59356455,2517.9,2517.8,0.79412]
[1751670787146,39.38767455,2517.9,2517.8,0.79412]
[1751670789051,0.79414,2517.8,2517.7,0.79416]
[1751670789253,3.80370406,2517.8,2517.7,0.79416]
[1751670790148,0.79422,2517.6,2517.5,0.79424]
[1751670790358,36.86922,2517.6,2517.5,0.79424]
[1751670792753,0.79424,2517.5,2517.4,0.79426]
[1751670792948,1.4155,2517.5,2517.0,3.35866]
[1751670793146,2.20976,2517.5,2517.4,0.79427]
[1751670794856,1.4155,2517.5,2517.4,0.79427]
[1751670795452,2.20974,2517.5,2517.4,0.79427]
[1751670795857,1.4155,2517.5,2517.4,0.79427]
[1751670796255,2.20974,2517.5,2517.4,0.79427]
[1751670796859,2.20974,2517.5,2517.3,0.79427]
[1751670796860,0.79429,2517.4,2517.3,0.79427]
[1751670797058,0.79433,2517.3,2517.2,0.79432]
[1751670797261,38.26253,2517.3,2517.2,0.79432]
[1751670799458,37.4682,2517.3,2517.2,0.79432]
[1751670800262,38.2625,2517.3,2517.2,0.79432]
[1751670804566,37.4682,2517.3,2517.2,0.79432]
[1751670805964,36.071,2517.3,2517.2,0.79432]
[1751670806565,0.6646,2517.6,2517.5,0.79424]
[1751670806864,36.7386,2517.6,2517.5,0.79424]
[1751670813169,37.83156137,2517.6,2517.5,0.79424]
[1751670813470,38.62577137,2517.6,2517.5,0.79424]
[1751670814470,37.83156137,2517.6,2517.5,0.79424]
[1751670817370,38.62577137,2517.6,2517.5,0.79424]
[1751670817568,39.98417137,2517.6,2517.5,0.79424]
[1751670817770,39.18996137,2517.6,2517.5,0.79424]
[1751670818176,39.98417137,2517.6,2517.5,0.79424]
[1751670818975,39.18996137,2517.6,2517.5,0.79424]
[1751670820676,39.98417137,2517.6,2517.5,0.79424]
[1751670823779,39.18996137,2517.6,2517.5,0.79424]
[1751670824078,39.98417137,2517.6,2517.5,0.79424]
[1751670825981,39.18996137,2517.6,2517.5,0.79424]
[1751670828885,39.98417137,2517.6,2517.5,0.79424]
[1751670831380,0.7943,2517.4,2517.2,0.7044]
[1751670831580,0.79436,2517.2,2517.1,0.79434]
[1751670831884,36.86436,2517.2,2517.1,0.79434]
[1751670832082,38.95996,2517.2,2517.1,0.79434]
[1751670832285,40.05502655,2517.2,2517.1,0.79434]
[1751670833776,40.05502655,2517.2,2517.0,0.79437]
[1751670833777,0.79438,2517.1,2517.0,0.79437]
[1751670833982,0.7944,2517.0,2516.9,1.4988]
[1751670834284,2.18638,2517.1,2517.0,0.7944]
[1751670834476,39.35229847,2517.1,2517.0,0.7944]
[1751670835174,38.25738,2517.1,2517.0,0.7944]
[1751670835583,37.463,2517.1,2517.0,0.7944]
[1751670835784,38.25736,2517.1,2517.0,0.7944]
[1751670837187,39.35159439,2517.1,2517.0,0.7944]
[1751670839089,38.25736,2517.1,2517.0,0.7944]
[1751670841588,38.25736,2517.1,2516.9,0.79441]
[1751670841589,0.79442,2517.0,2516.9,0.79441]
[1751670841782,0.79446,2516.9,2516.8,0.79444]
[1751670841984,3.93320285,2516.9,2516.8,0.79444]
[1751670842187,2.83806,2516.9,2516.8,0.79444]
[1751670845397,0.79448,2516.8,2516.7,0.79447]
[1751670845692,37.4663,2516.8,2516.7,0.79447]
[1751670847598,36.072,2516.8,2516.7,0.79447]
[1751670851893,36.86646,2516.8,2516.7,0.79447]
[1751670852099,36.86646,2516.8,2516.5,0.6921]
[1751670852100,0.79451,2516.7,2516.6,0.7945]
[1751670852296,2.11981,2516.7,2516.6,0.7945]
[1751670853302,0.79452,2516.6,2516.5,1.48662]
[1751670853600,0.6919,2516.6,2516.5,1.48662]
[1751670853898,0.6919,2516.6,2516.5,0.79452]
[1751670854397,1.48642,2516.6,2516.5,0.79452]
[1751670857001,0.6919,2516.6,2516.5,0.79452]
[1751670860110,36.7649,2516.6,2516.5,0.79452]
[1751670869027,36.073,2516.6,2516.5,0.79452]
[1751670869221,1.50875,2516.9,2516.5,1.98638]
[1751670869523,48.34796652,2516.8,2516.7,0.79449]
[1751670884526,49.14242652,2516.8,2516.7,0.79449]
[1751670884830,50.56752652,2516.8,2516.7,0.79449]
[1751670891338,49.77306652,2516.8,2516.7,0.79449]
[1751670892138,50.56752652,2516.8,2516.7,0.79449]
[1751670892334,49.77306652,2516.8,2516.7,0.79449]
[1751670892540,50.56752652,2516.8,2516.7,0.79449]
[1751670896348,0.79456,2516.6,2516.5,0.79454]
[1751670896548,37.95352652,2516.6,2516.5,0.79454]
[1751670896946,39.34262652,2516.6,2516.5,0.79454]
[1751670899849,38.54806652,2516.6,2516.0,0.7112]
[1751670900049,0.79463,2516.3,2516.2,0.79462]
[1751670900247,0.79463,2516.3,2515.9,0.6599]
[1751670900248,36.061,2516.3,2515.9,0.6599]
[1751670900455,0.79468,2516.1,2516.0,0.79471]
[1751670900759,0.7094,2516.2,2516.1,0.79468]
[1751670900949,37.86704403,2516.2,2516.1,0.79468]
[1751670901251,37.15764403,2516.2,2516.1,0.79468]
[1751670902451,36.06,2516.2,2516.1,0.79468]
[1751670904956,38.15245,2516.2,2516.1,0.79468]
[1751670906154,0.79469,2516.1,2516.0,0.79469]
[1751670906358,0.79472,2516.0,2515.9,0.79472]
[1751670906552,36.85672,2516.0,2515.9,0.79472]
[1751670906746,38.15452,2516.0,2515.9,0.79472]
[1751670908155,0.79476,2515.9,2515.8,0.79475]
[1751670908358,2.16026,2515.9,2515.8,0.79475]
[1751670908759,1.3655,2515.9,2515.8,0.79475]
[1751670910459,2.16024,2515.9,2515.8,0.79475]
[1751670911060,1.3655,2515.9,2515.8,0.79475]
[1751670911361,1.3655,2515.9,2515.7,0.79479]
[1751670911362,0.7948,2515.8,2515.7,0.79479]
[1751670911660,37.5363,2515.8,2515.7,0.79479]
[1751670912259,0.79482,2515.7,2515.6,0.79482]
[1751670914361,2.15712,2515.7,2515.6,0.79482]
[1751670914561,2.15712,2515.7,2515.6,0.80496328]
[1751670914961,1.3623,2515.7,2515.6,0.80496328]
[1751670924371,13.33311,2515.7,2515.6,0.80496328]
[1751670924679,13.98541,2515.7,2515.6,0.01014328]
[1751670925171,15.08348381,2515.7,2515.6,0.80498328]
[1751670925372,13.98541,2515.7,2515.6,0.80498328]
[1751670925572,13.98541,2515.7,2515.6,0.01014328]
[1751670926078,15.08338918,2515.7,2515.6,0.01014328]
[1751670927069,0.79493,2515.4,2515.3,0.79492]
[1751670927274,36.86093,2515.4,2515.3,0.79492]
[1751670928181,38.21923,2515.4,2515.3,0.79492]
[1751670928983,0.79495,2515.3,2515.2,0.79494]
[1751670929279,0.79498,2515.2,2515.1,0.79498]
[1751670929472,1.46848,2515.2,2515.1,0.79498]
[1751670929672,2.84358,2515.2,2515.1,0.79498]
[1751670931082,0.79501,2515.1,2515.0,0.79501]
[1751670931277,49.41411,2515.1,2515.0,0.79501]
[1751670931478,49.41411,2515.1,2514.5,2.69991]
[1751670931479,53.6191,2515.1,2514.2,3.37365]
[1751670931676,1.3751,2515.0,2514.9,0.79506]
[1751670931872,48.03901,2515.1,2514.5,2.67683]
[1751670932083,49.44141,2515.1,2514.9,0.79504]
[1751670932581,49.44141,2515.1,2515.0,0.79503]
[1751670932782,50.53938234,2515.1,2515.0,0.79503]
[1751670932987,50.53938234,2515.1,2514.5,3.98013]
[1751670933186,49.44141,2515.1,2515.0,0.79503]
[1751670933378,50.53910817,2515.1,2515.0,0.79503]
[1751670934676,0.79503,2515.0,2514.9,0.79505]
[1751670935182,2.19433,2515.0,2514.9,0.79505]
[1751670936184,2.19433,2515.0,2514.6,0.6749]
[1751670936185,0.79506,2514.9,2514.6,0.6749]
[1751670936481,36.86609,2514.8,2514.7,0.79512]
[1751670936681,36.86609,2514.8,2514.6,0.6749]
[1751670936682,0.79512,2514.7,2514.6,0.79513]
[1751670936881,37.4703,2514.8,2514.2,1.98819]
[1751670937082,2.0639,2514.6,2514.1,0.6644]
[1751670937280,36.8662,2514.5,2514.4,0.7952]
[1751670937678,48.0422,2514.5,2514.4,0.7952]
[1751670938182,47.247,2514.5,2513.8,1.98845]
[1751670938487,0.79525,2514.3,2514.2,0.79526]
[1751670938681,2.14104,2514.4,2514.3,0.79525]
[1751670939384,1.3458,2514.4,2514.3,0.79525]
[1751670939986,47.251,2514.4,2514.3,0.79525]
[1751670940985,48.04622,2514.4,2514.3,0.79525]
[1751670941185,0.79525,2514.3,2514.2,0.79526]
[1751670941388,1.50305,2514.3,2514.2,0.79526]
[1751670942494,2.90805,2514.3,2514.2,0.79526]
[1751670943190,0.79529,2514.2,2514.1,0.7953]
[1751670943394,0.79532,2514.1,2514.0,0.79532]
[1751670943899,2.20032,2514.1,2514.0,0.79532]
[1751670944297,0.79534,2514.0,2513.9,2.12645]
[1751670944596,36.87234,2514.0,2513.9,2.12645]
[1751670944796,37.55034,2514.0,2513.9,2.12645]
[1751670945093,37.55034,2514.0,2513.9,1.3311]
[1751670945299,37.55034,2514.0,2513.9,0.79537]
[1751670946298,0.79542,2513.8,2513.7,0.79541]
[1751670946498,11.97442,2513.8,2513.7,0.79541]
[1751670946995,11.179,2513.8,2513.7,0.79541]
[1751670947296,11.97441,2513.8,2513.7,0.79541]
[1751670947899,11.179,2513.8,2513.7,0.79541]
[1751670950903,1.297,2513.9,2513.0,1.98908]
[1751670951205,0.79548,2513.6,2513.1,1.48102]
[1751670951405,36.084,2513.5,2513.1,1.48102]
[1751670951605,36.7322,2513.5,2513.1,1.48102]
[1751670951802,2.0187,2513.7,2513.1,0.6854]
[1751670952007,47.264,2513.6,2513.2,2.16098]
[1751670952209,47.264,2513.6,2513.3,1.3654]
[1751670952400,47.264,2513.6,2513.1,1.48101]
[1751670952702,0.79557,2513.3,2513.1,2.84641]
[1751670952903,36.084,2513.2,2513.1,2.84641]
[1751670953104,36.8796,2513.2,2513.1,2.84641]
[1751670953508,36.8796,2513.2,2513.1,2.0508]
[1751670954505,36.084,2513.2,2513.1,2.84643]
[1751670955305,36.8796,2513.2,2513.1,2.84643]
[1751670955508,36.084,2513.2,2513.1,2.84643]
[1751670956604,36.8796,2513.2,2513.1,2.84643]
[1751670957207,36.8796,2513.2,2513.1,1.48103]
[1751670958210,36.8796,2513.2,2513.1,0.6854]
[1751670959904,36.084,2513.2,2512.2,1.98971]
[1751670960109,0.7957,2512.9,2512.5,0.7033]
[1751670960305,0.79568,2513.0,2512.5,2.1207]
[1751670960504,36.091,2512.9,2512.6,1.4174]
[1751670960711,36.091,2512.9,2512.8,0.79572]
[1751670961203,36.091,2513.0,2512.9,0.79569]
[1751670961410,36.88666,2513.0,2512.9,0.79569]
[1751670961610,0.7957,2512.9,2512.8,0.7957]
[1751670961812,0.79565,2513.1,2513.0,0.79564]
[1751670962012,48.06965,2513.1,2513.0,0.79564]
[1751670962406,47.274,2513.1,2513.0,0.79564]
[1751670963115,48.06963,2513.1,2513.0,0.79564]
[1751670963310,1.4204,2513.3,2513.0,0.79564]
[1751670963516,47.276,2513.1,2513.0,0.79564]
[1751670963716,48.07163,2513.1,2513.0,0.79564]
[1751670964609,0.79563,2513.1,2513.0,0.79564]
[1751670964810,48.07163,2513.1,2513.0,0.79564]
[1751670965107,48.07165,2513.1,2513.0,0.79566]
[1751670965508,0.79565,2513.1,2513.0,0.79566]
[1751670965814,48.07165,2513.1,2513.0,0.79566]
[1751670966404,47.276,2513.1,2512.8,1.3326]
[1751670966607,0.79569,2512.9,2512.8,0.6727]
[1751670967010,0.79569,2512.9,2512.5,0.31631058]
[1751670967214,36.094,2512.8,2512.7,0.79572]
[1751670967709,0.6826,2513.0,2512.9,0.79569]
[1751670967911,47.277,2513.0,2512.9,0.79569]
[1751670969910,48.07266,2513.0,2512.9,0.79569]
[1751670970515,47.277,2513.0,2512.6,0.6748]
[1751670970715,0.7957,2512.9,2512.8,0.79571]
[1751670972213,49.36548,2513.0,2512.9,0.79569]
[1751670972520,0.79571,2512.9,2512.8,0.7957]
[1751670973920,2.11231,2512.9,2512.8,0.7957]
[1751670974318,1.3166,2512.9,2512.2,1.98979]
[1751670974518,2.11231,2512.9,2512.8,0.79572]
[1751670974718,50.57585545,2512.9,2512.8,0.79572]
[1751670975520,2.42414545,2512.9,2512.8,0.79572]